Cogmind - Beta 10.2 @@@ ROGUE MODE // 2021.06.08 @ 18:32:41 Player: Finestep Result: Destroyed by H-55 Commando with Gauss Rifle Performance ------------- Evolutions (1) 500 Regions Visited (6) 1200 Robots Destroyed (75) 375 Value Destroyed (1213) 1213 Prototype IDs (31) 620 Alien Tech Used (0) 0 Bonus (286) 286 TOTAL SCORE: 4194 Bonus ------- Follower Combat Kills 83 Aligned with FarCom 300 Friendly Fire -97 Cogmind --------- Core Integrity 0/400 Matter 235/300 Energy 280/280 System Corruption 0% Temperature Cool (0) Movement Treading (180) Ox1 Location -8/Mines Parts ------- > --- POWER (1) -------- Heavy Ion Engine > --- PROPULSION (2) --- Light Treads Improved Treads > --- UTILITY (4) ------ Large Storage Unit Large Storage Unit High-capacity Storage Unit Medium Armor Plating > --- WEAPON (2) ------- Heavy Assault Rifle Shotgun > --- INVENTORY (24) --- Makeshift Power Source Makeshift Power Source Cold Fusion Reactor Light Treads Light Treads Light Treads Improved Flight Unit Large Storage Unit Large Storage Unit High-capacity Matter Pod (200) High-capacity Matter Pod (97) Transport Network Coupler Experimental Targeting Computer Makeshift System Shield Makeshift System Shield System Purifier Heavy Assault Rifle Heavy Assault Rifle Heavy Assault Rifle Gauss Rifle Datajack Peak State ------------ > --- POWER ------------ Cold Fusion Reactor > --- PROPULSION ------- Light Treads Improved Treads > --- UTILITY ---------- Large Storage Unit Large Storage Unit Large Storage Unit System Purifier > --- WEAPON ----------- Heavy Assault Rifle Improved Assault Rifle > --- INVENTORY -------- Heavy Ion Engine Light Treads Light Treads Light Treads Improved Flight Unit Large Storage Unit High-capacity Matter Pod High-capacity Matter Pod Transport Network Coupler Experimental Targeting Computer Medium Armor Plating Medium Armor Plating Guided Plasma Cannon Heavy Assault Rifle Heavy Assault Rifle Heavy Assault Rifle Datajack [Rating: 29] Favorites ----------- Power Heavy Ion Engine Engine Heavy Ion Engine Power Core Light Neutrino Core Reactor Cold Fusion Reactor Propulsion Light Treads Treads Light Treads Leg Advanced Myomer Leg Flight Unit Improved Flight Unit Utility Large Storage Unit Device System Purifier Storage Large Storage Unit Protection Medium Armor Plating Weapon Improved Assault Rifle Energy Gun Medium Laser Energy Cannon Beam Cannon Ballistic Gun Improved Assault Rifle Build | -11 -10 -10 -9 -9 -9 -8 ------- Run | Scr Mat Min Mat Min Exi Min Slots Evolved 2 | . . . 2 . . . Power . | . . . . . . . Propulsion . | . . . . . . . Utility 2 | . . . 2 . . . Weapon . | . . . . . . . Parts Attached 66 | 6 9 . 18 . 28 5 Power 8 | 1 . . 3 . 4 . Engine 6 | 1 . . 3 . 2 . Core 1 | . . . . . 1 . Reactor 1 | . . . . . 1 . Propulsion 16 | 2 2 . 6 . 6 . Treads 14 | 2 2 . 5 . 5 . Leg 1 | . . . . . 1 . Wheel . | . . . . . . . Hover . | . . . . . . . Flight 1 | . . . 1 . . . Utility 23 | 1 3 . 4 . 12 3 Device 2 | . . . . . 2 . Storage 9 | 1 3 . 1 . 3 1 Processor . | . . . . . . . Hackware . | . . . . . . . Protection 12 | . . . 3 . 7 2 Artifact . | . . . . . . . Weapon 19 | 2 4 . 5 . 6 2 Energy Gun 2 | 1 1 . . . . . Energy Cannon 3 | . 1 . . . 2 . Ballistic Gun 14 | 1 2 . 5 . 4 2 Ballistic Cannon . | . . . . . . . Launcher . | . . . . . . . Special Weapon . | . . . . . . . Impact Weapon . | . . . . . . . Slashing Weapon . | . . . . . . . Piercing Weapon . | . . . . . . . Special Melee Weapon . | . . . . . . . Unidentified Prototypes 8 | . . . 3 . 5 . Parts Lost 12 | . 2 . . . 8 2 Power 1 | . . . . . 1 . Propulsion 3 | . . . . . 3 . Utility 4 | . . . . . 3 1 Weapon 4 | . 2 . . . 1 1 Highest Loss Streak 8 | . 1 . . . 8 2 Average Slot Usage (%) 98 | . 97 100 99 100 99 99 Engine 11 | . 14 14 11 11 10 11 Treads 23 | . 28 28 22 22 21 22 Storage 29 | . 25 28 33 33 31 33 Protection 7 | . . . 10 11 12 10 Energy Gun 1 | . 3 . . . . . Energy Cannon 1 | . 3 . . . 1 . Ballistic Gun 21 | . 21 28 21 22 20 22 Naked Turns . | . . . . . . . Heaviest Build 85 | 11 41 39 69 69 76 85 Greatest Support 43 | 40 40 40 43 43 43 43 Greatest Overweight (x) 3 | . 1 . 3 1 2 1 Average Overweight (x) . | . . . 1 1 1 1 Largest Inventory Capacity 24 | 6 16 16 22 22 22 24 Average Capacity 18 | 5 13 16 22 22 20 23 Most Carried 23 | 4 16 16 22 22 22 23 Average Carried 17 | 3 12 16 20 22 18 22 Final Capacity 24 | 6 16 16 22 22 22 24 Final Carried 22 | 4 16 16 22 22 22 21 Class Distribution -------------------- 54% | Hauler-Mutant 40% | Mutant 4% | Scavenger-Mutant Dominant Class ---------------- Mutant | -10/Materials Mutant | -10/Mines Hauler-Mutant | -9/Materials Hauler-Mutant | -9/Mines Hauler-Mutant | -9/Exiles Hauler-Mutant | -8/Mines Resources | -11 -10 -10 -9 -9 -9 -8 ----------- Run | Scr Mat Min Mat Min Exi Min Matter Collected 2139 | 269 502 14 512 94 679 69 Remotely . | . . . . . . . Salvage Created 2870 | 127 850 79 900 186 659 69 Parts 195 | 10 43 5 60 12 53 12 Haulers Intercepted 8 | . 2 . 6 . . . Recyclers Shooed 4 | . 1 2 1 . . . Parts Field Recycled . | . . . . . . . Retrieved Matter . | . . . . . . . Parts Self-Destructed . | . . . . . . . Prevented . | . . . . . . . Kills | -11 -10 -10 -9 -9 -9 -8 ------- Run | Scr Mat Min Mat Min Exi Min Combat Hostiles Destroyed 43 | . 10 2 12 6 8 5 Guns 40 | . 10 2 12 6 8 2 AOE 3 | . . . . . . 3 Classes Destroyed 15 | 2 6 . 2 1 3 1 Worker 6 | . 1 . 4 1 . . Builder 1 | . 1 . . . . . Tunneler 4 | 3 1 . . . . . Hauler 8 | . 2 . 6 . . . Recycler 5 | 1 4 . . . . . Operator 1 | . . . 1 . . . Turret 1 | . . . . . 1 . Watcher 3 | . 2 . 1 . . . Swarmer 15 | . 3 . 4 4 . 4 Grunt 13 | . 7 2 3 1 . . Brawler 1 | . . . . 1 . . Sentry 5 | . . . 5 . . . Hunter 1 | . . . . . . 1 Zionite 8 | . . . . . 8 . Assembled 7 | . . . . . 7 . Best Kill Streak 7 | 4 5 2 4 4 7 4 Combat Bots Only 7 | . 5 2 4 4 7 4 Max Kills in Single Turn 3 | 1 2 1 2 1 1 3 Gunslinging 1 | . . . 1 . . . Exploded 3 | . . . . . . 3 Melee . | . . . . . . . Uniques/NPCs Destroyed 4 | . . . . . 4 . 8R-AWN (-9/Exiles) EX-DEC (-9/Exiles) EX-BIN (-9/Exiles) EX-HEX (-9/Exiles) Combat | -11 -10 -10 -9 -9 -9 -8 -------- Run | Scr Mat Min Mat Min Exi Min Damage Taken 3398 | . 453 128 561 181 1519 556 Core 471 | . 67 . 92 28 216 68 Absorbed by Shields . | . . . . . . . Core Remaining (%) 86 | 100 . 73 . . . . Volleys Fired 320 | 9 86 9 77 14 110 15 Largest 2 | 2 2 2 2 2 2 2 Hottest 120 | 60 80 40 46 46 120 46 Shots Fired 611 | 18 167 18 154 28 197 29 Gun 569 | 18 148 18 154 28 174 29 Cannon 42 | . 19 . . . 23 . Launcher . | . . . . . . . Special . | . . . . . . . Kinetic 528 | 9 116 18 154 28 174 29 Thermal 83 | 9 51 . . . 23 . Explosive . | . . . . . . . Electromagnetic . | . . . . . . . Robot Hit Streak 44 | 14 23 9 11 10 44 9 Robot Miss Streak 5 | 1 5 1 4 1 2 4 Penetration Max . | . . . . . . . Secondary Targets 4 | . . 1 1 2 . . Max Gunslinging Chain 1 | . . 1 1 1 . . Shots Hit Robots 422 | 14 118 15 104 20 131 20 Core Hits 166 | 7 42 5 45 8 50 9 Critical Hits 6 | . . 1 1 . 4 . Critical Kills 2 | . . 1 1 . . . Critical Parts Destroyed 3 | . . . . . 3 . Melee Attacks . | . . . . . . . Impact . | . . . . . . . Slashing . | . . . . . . . Piercing . | . . . . . . . Sneak Attacks . | . . . . . . . Combat Hostiles . | . . . . . . . Follow-up Attacks . | . . . . . . . Damage Inflicted 5860 | 118 1177 135 1391 278 2375 386 Guns 5021 | 118 949 135 1391 278 1902 248 Cannons 701 | . 228 . . . 473 . Explosions 130 | . . . . . . 130 Melee . | . . . . . . . Ramming 8 | . . . . . . 8 Kinetic 4665 | 51 660 135 1391 278 1902 248 Thermal 1187 | 67 517 . . . 473 130 Explosive . | . . . . . . . Electromagnetic . | . . . . . . . Impact . | . . . . . . . Slashing . | . . . . . . . Piercing . | . . . . . . . Highest Corruption . | . . . . . . . Average Corruption . | . . . . . . . Corruption Purged . | . . . . . . . Overload Shots . | . . . . . . . Overflow Damage 43 | . . . . . 37 6 Projectiles 37 | . . . . . 37 . Explosions 6 | . . . . . . 6 Melee . | . . . . . . . Knockbacks . | . . . . . . . Impact . | . . . . . . . Kinetic . | . . . . . . . Secondary . | . . . . . . . Self-Inflicted Damage 37 | . . . . . . 37 Shots 1 | . . . . . . 1 Rammed 1 | . . . . . . 1 Targets Rammed 1 | . . . . . . 1 Kicked . | . . . . . . . Crushed . | . . . . . . . Highest Temperature 371 | 40 172 21 234 . 371 8 Average Temperature 73 | 18 54 8 28 . 118 6 Received Heat Transfer 480 | . 177 69 174 . 60 . Effects 2 | . . . . . 2 . Energy Bleed 1 | . . . . . 1 . Interference 1 | . . . . . 1 . Siege Activations . | . . . . . . . Robots Corrupted . | . . . . . . . Combat Hostiles . | . . . . . . . Parts Fried . | . . . . . . . Impact Corruptions . | . . . . . . . Robots Melted 1 | . . . . . 1 . Combat Hostiles . | . . . . . . . Parts Melted 8 | . 1 . . . 7 . Heat Transferred 2638 | 150 1248 . . . 1040 200 Parts Sabotaged . | . . . . . . . Parts Stolen . | . . . . . . . Parts Stripped . | . . . . . . . Power Chain Reactions . | . . . . . . . Missiles Intercepted . | . . . . . . . Alert | -11 -10 -10 -9 -9 -9 -8 ------- Run | Scr Mat Min Mat Min Exi Min Peak Influence 280 | 20 203 50 280 176 . 139 Initial 81 | . 13 . 19 81 . . Average 81 | 7 51 42 130 99 . 132 Maximum Alert Level 1 | . 1 . 1 . . . Low Security (%) 90 | 100 92 100 69 100 . 100 Level 1 9 | . 7 . 30 . . . Level 2 . | . . . . . . . Level 3 . | . . . . . . . Level 4 . | . . . . . . . Level 5 . | . . . . . . . High Security . | . . . . . . . Max Security . | . . . . . . . Squads Dispatched 4 | . 2 . 2 . . . Investigation 2 | . 2 . . . . . Extermination . | . . . . . . . Reinforcement 2 | . . . 2 . . . Assault . | . . . . . . . Garrison . | . . . . . . . Intercept . | . . . . . . . Construction Impeded . | . . . . . . . Haulers Reinforced . | . . . . . . . Stealth | -11 -10 -10 -9 -9 -9 -8 --------- Run | Scr Mat Min Mat Min Exi Min Distress Signals 2 | . . . 2 . . . Communications Jammed . | . . . . . . . Distress Signals . | . . . . . . . Times Spotted 100 | . 19 2 23 6 44 6 Peak Tracking Total 10 | . 5 2 4 4 10 4 Tactical Retreats 6 | . . . 1 . 5 . Traps | -11 -10 -10 -9 -9 -9 -8 ------- Run | Scr Mat Min Mat Min Exi Min Traps Triggered . | . . . . . . . Indirectly . | . . . . . . . Trap Hack Attempts . | . . . . . . . Triggered . | . . . . . . . Disarmed . | . . . . . . . Reprogrammed . | . . . . . . . Reused . | . . . . . . . Traps Extracted . | . . . . . . . Installed . | . . . . . . . Triggered . | . . . . . . . Machines | -11 -10 -10 -9 -9 -9 -8 ---------- Run | Scr Mat Min Mat Min Exi Min Machines Disabled 6 | . . . 1 1 3 1 Max in Single Turn 1 | . . . 1 1 1 1 Machines Sabotaged . | . . . . . . . Garrisons Compromised . | . . . . . . . Overloaded Fab Kills . | . . . . . . . Fab Network Shutdowns . | . . . . . . . Hacking | -11 -10 -10 -9 -9 -9 -8 --------- Run | Scr Mat Min Mat Min Exi Min Machines Accessed 15 | . 9 . 4 . 2 . Terminals 11 | . 8 . 3 . . . Fabricators . | . . . . . . . Repair Stations . | . . . . . . . Recycling Units 1 | . 1 . . . . . Scanalyzers 1 | . . . 1 . . . Garrison Access . | . . . . . . . Total Hacks 53 | . 30 . 18 . 5 . Successful 29 | . 17 . 7 . 5 . Failed 23 | . 12 . 11 . . . Catastrophic 4 | . 2 . 2 . . . Database Lockouts 1 | . 1 . . . . . Manual 34 | . 25 . 8 . 1 . Terminals 43 | . 29 . 14 . . . Fabricators . | . . . . . . . Repair Stations . | . . . . . . . Recycling Units 1 | . 1 . . . . . Scanalyzers 4 | . . . 4 . . . Garrison Access . | . . . . . . . Terminal Hacks 19 | . 11 . 3 . 5 . Record 4 | . . . . . 4 . Robot Schematic 1 | . 1 . . . . . Robot Analysis 4 | . 3 . 1 . . . Terminal Index 1 | . 1 . . . . . Locate Traps 2 | . 2 . . . . . Transport Status 1 | . . . 1 . . . Hauler Manifests 2 | . 1 . 1 . . . Registered Components 1 | . 1 . . . . . Zone Layout 2 | . 2 . . . . . EX-Prototype ID Bank 1 | . . . . . 1 . Fabricator Hacks . | . . . . . . . Repair Station Hacks . | . . . . . . . Recycling Unit Hacks . | . . . . . . . Scanalyzer 4 | . . . 4 . . . Insert Component 2 | . . . 2 . . . Analyze 2 | . . . 2 . . . Garrison Access Hacks . | . . . . . . . Unauthorized Hacks 6 | . 6 . . . . . Terminals 5 | . 5 . . . . . Track 3 | . 3 . . . . . Botnet 1 | . 1 . . . . . Operators 1 | . 1 . . . . . Fabricators . | . . . . . . . Repair Stations . | . . . . . . . Recycling Units 1 | . 1 . . . . . Tunnel 1 | . 1 . . . . . Scanalyzers . | . . . . . . . Garrison Access . | . . . . . . . Data Cores Recovered . | . . . . . . . Used . | . . . . . . . Hacking Detections 8 | . 5 . 3 . . . Full Trace Events 1 | . 1 . . . . . Feedback Events . | . . . . . . . Feedback Blocked . | . . . . . . . Robot Schematics Acquired 1 | . 1 . . . . . Robots Built . | . . . . . . . Matter . | . . . . . . . Time . | . . . . . . . Total Robot Build Rating . | . . . . . . . Part Schematics Acquired 2 | . . . 2 . . . Parts Built . | . . . . . . . Matter . | . . . . . . . Time . | . . . . . . . Total Part Build Rating . | . . . . . . . Parts Repaired . | . . . . . . . Time . | . . . . . . . Parts Recycled . | . . . . . . . Recycled Matter . | . . . . . . . Retrieved Matter . | . . . . . . . Retrieved Components . | . . . . . . . Parts Scanalyzed 2 | . . . 2 . . . Part Schematics Acquired 2 | . . . 2 . . . Parts Damaged . | . . . . . . . Bothacking | -11 -10 -10 -9 -9 -9 -8 ------------ Run | Scr Mat Min Mat Min Exi Min Used RIF Installer . | . . . . . . . Robots Hacked . | . . . . . . . Non-combat . | . . . . . . . Combat . | . . . . . . . Robot Hacks Applied . | . . . . . . . Relay Couplers Released . | . . . . . . . Robots Rewired . | . . . . . . . Allies Hacked . | . . . . . . . Hacks Repelled . | . . . . . . . Allies | -11 -10 -10 -9 -9 -9 -8 -------- Run | Scr Mat Min Mat Min Exi Min Total Allies 3 | . . 3 . . . . Largest Group 3 | . . 3 3 . . . Highest-Rated Group 72 | . . 72 72 . . . Highest-Rated Ally 31 | . . 31 31 . . . Total Orders . | . . . . . . . Ally Attacks 18 | . . . 18 . . . Total Damage 210 | . . . 210 . . . Kills 6 | . . . 6 . . . Allies Corrupted . | . . . . . . . Allies Melted . | . . . . . . . Intel | -11 -10 -10 -9 -9 -9 -8 ------- Run | Scr Mat Min Mat Min Exi Min Robot Analysis Total 4 | . 3 . 1 . . . Derelict Logs Recovered 1 | . . . . 1 . . Drone Launches . | . . . . . . . Drone Recoveries . | . . . . . . . Exploration | -11 -10 -10 -9 -9 -9 -8 ------------- Run | Scr Mat Min Mat Min Exi Min Turns Passed 6670 | 133 2013 192 977 788 2236 331 Spaces Moved 3025 | 63 913 102 389 414 995 149 Core 6 | 6 . . . . . . Treads 3019 | 57 913 102 389 414 995 149 Legs . | . . . . . . . Wheels . | . . . . . . . Hover . | . . . . . . . Flight . | . . . . . . . Fastest Speed 50 | 50 160 160 180 180 180 180 Average Speed 173 | 149 161 160 180 180 180 180 Slowest Speed 220 | 160 180 160 220 180 200 180 Overloaded Moves . | . . . . . . . Propulsion Burnouts . | . . . . . . . Robots Hopped . | . . . . . . . Cave-ins Triggered . | . . . . . . . Exploration Rate (%) 49 | 5 98 23 32 69 86 30 Regions Visited 6 Branch Regions 4 Pre-discovered Areas 2 | . 1 . . . 1 . Known Exits Taken . | . . . . . . . Unknown Exits Taken 6 | 1 1 1 1 1 1 . Scrap Searched 2 | . . . . 1 . 1 Spaces Dug 2 | . . . . . 2 . Terrain Destroyed 11 | . . . . . 7 4 Melee . | . . . . . . . Projectile 7 | . . . . . 7 . AOE 4 | . . . . . . 4 Terrain Rammed . | . . . . . . . Walls Destroyed . | . . . . . . . Machines Disabled . | . . . . . . . Actions | -11 -10 -10 -9 -9 -9 -8 --------- Run | Scr Mat Min Mat Min Exi Min Total 3915 | 84 1317 117 540 432 1242 183 Wait 377 | . 275 7 16 1 69 9 Move 3019 | 62 912 101 388 413 994 149 Hop . | . . . . . . . Pick Up 70 | 6 22 . 17 2 21 2 Fast Attach 26 | 5 2 . 6 . 13 . Attach 18 | 1 3 . 3 . 8 3 Detach 1 | . . . . . 1 . Swap 22 | . 4 . 9 . 7 2 Drop 61 | 1 13 . 24 2 19 2 Fire 320 | 9 86 9 77 14 110 15 Melee . | . . . . . . . Ram . | . . . . . . . Kick . | . . . . . . . Crush 1 | . . . . . . 1 Escape Stasis . | . . . . . . . Rewire . | . . . . . . . Trap . | . . . . . . . Miscellaneous . | . . . . . . . Route ------- -11/Scrapyard -10/Materials (discovered 4 exits: *Mat x3 / [*Min]) -10/Mines (discovered 2 exits: *Mat x2) -9/Materials -9/Mines (discovered 3 exits: [*Mat x2] / *Exi) -9/Exiles (discovered 2 exits: [*Min x2]) -8/Mines History --------- Turn | Location | Event 6 | -11/Scrapyard | Discovered new exit (range 15) 134 | -11/Scrapyard | Entered Materials 305 | -10/Materials | Build established: Mutant 330 | -10/Materials | Discovered new exit (range 3) 360 | -10/Materials | Central database locked down 531 | -10/Materials | Discovered new exit (range 8) 1001 | -10/Materials | Discovered new exit (range 13) 1060 | -10/Materials | Discovered new exit (range 5) 2147 | -10/Materials | Entered Mines 2240 | -10/Mines | Discovered new exit (range 7) 2268 | -10/Mines | Discovered new exit (range 15) 2271 | -10/Mines | Received a Mining Laser from a helpful Derelict 2339 | -10/Mines | Entered Materials 2339 | -9/Materials | Accompanied by 3 allies 2339 | -9/Materials | Evolved 2 slots: Utility x2 2344 | -9/Materials | Led the pair of lost Derelicts to an unsafe place 2646 | -9/Materials | Build established: Hauler-Mutant 2752 | -9/Materials | Discovered new exit (range 10) 3104 | -9/Materials | Build established: Scavenger-Mutant 3316 | -9/Materials | Entered Mines 3409 | -9/Mines | Assembled infested the area 3416 | -9/Mines | Build established: Hauler-Mutant 3980 | -9/Mines | Discovered new exit (range 7) 4035 | -9/Mines | Discovered new exit (range 15) 4097 | -9/Mines | Discovered new exit (range 5) 4104 | -9/Mines | Entered Exiles 4136 | -9/Exiles | Discovered new exit (range 15) 4222 | -9/Exiles | Met 8R-AWN 4249 | -9/Exiles | Met EX-HEX 4319 | -9/Exiles | Met EX-DEC 4326 | -9/Exiles | Learned location of Zion (-7) 4553 | -9/Exiles | Met EX-BIN 4573 | -9/Exiles | Aligned with FarCom system 4575 | -9/Exiles | Given EX-Vault access code 4616 | -9/Exiles | Opened EX-Vault 4628 | -9/Exiles | Found Gui. Plasma Cannon 4668 | -9/Exiles | Warned to stay clear of 0b10 Research branches 5142 | -9/Exiles | Attacked by the Exiles 5244 | -9/Exiles | Core integrity fell below 50% 5248 | -9/Exiles | Destroyed 7 combat bots 5343 | -9/Exiles | Build established: Mutant 5344 | -9/Exiles | Destroyed 8R-AWN 5353 | -9/Exiles | Lost 8 parts (1p3n3u1w) 5391 | -9/Exiles | Found Prototype Processor 5600 | -9/Exiles | Core integrity fell below 20% 5663 | -9/Exiles | Build established: Hauler-Mutant 5809 | -9/Exiles | Destroyed EX-DEC 5857 | -9/Exiles | Destroyed EX-BIN 5884 | -9/Exiles | Destroyed EX-HEX 5959 | -9/Exiles | Found Prototype Device 5959 | -9/Exiles | Identified System Purifier 6325 | -9/Exiles | Discovered new exit (range 10) 6340 | -9/Exiles | Entered Mines 6671 | -8/Mines | Destroyed by H-55 Commando with Gauss Rifle Last Messages --------------- 06650_ T-07 Excavator is excavating. 06650_ Penetrated by Slug. 06652_ U-05 Engineer lays Concrete. 06653_ Penetrated by Slug. 06654_ U-05 Engineer builds a Wall. 06655_ T-07 Excavator is excavating. 06656_ Penetrated by Slug. 06656_ U-05 Engineer destroyed. 06659_ T-07 Excavator is excavating. 06659_ U-05 Engineer lays Concrete. 06659_ Med. Armor Plating destroyed. 06660_ U-05 Engineer lays Concrete. 06661_ U-05 Engineer builds a Wall. 06663_ T-07 Excavator is excavating. 06665_ U-05 Engineer lays Concrete. 06665_ Imp. Assault Rifle destroyed. 06666_ U-05 Engineer builds a Wall. 06668_ T-07 Excavator is excavating. 06668_ Slug penetrates Wall. 06670_ U-05 Engineer builds a Wall. Map ----- +----------------------------------------------------+ | #??#### #????????????# #???? | | #??# #????????????## #???? | | ##??# ####?????????????# #???? | | #???# #????????????????# #???? | | ????# #????????????????## ##???? | | ????# #?????????????????## ##????? | | ##### ######?????????????# ##?????? | | #????????????## #??????? | | ########## #???????????## #??????? | | #?????????????????????## ##??????? | | #????????????????????## ####???????? | | #????????????????????# ##??????????? | | ?????????????????????# ##???####???? | | ?????????????????????# ##### #???? | | ?????????????????????## #???? | | ??????????????????????## #???? | | ???????????????????????### ###???? | | ?????????????????????????## ###?????? | | ??????????????????????????# #???????? | | ??????????????????????????# #???????? | | ??????????????????????###?# #???????? | | ?????????????????????? #?# #???????? | | ??????????????????????# #?# #???????? | | ??????????????????????# #?# #???????? | | ???????????????# !### ### #???????? | | ????????????????#t %= @hr#???????? | | ????????????????# u######## #???????? | | ??????????????????????????# ??????? | | ??????????????????????????# """?????? | | ?????????????????????????? """ ????? | | ?????????????????????????? """ #???? | | ?????????????????????????? #???? | | ??????????????????????????### ?#???? | | ????????????????????????????????????? | | ????????????????????????????????????? | | ????????????????????????????????????? | | ????????????????????????????????????? | | ????????????????????????????????????? | | ????????????????????????????????????? | | ????????????????????????????????????? | | ????????????????????????????????????? | | ????????????????????????????????????? | | ????????????????????????????????????? | | ????????????????????????????????????? | | ????????????????????????????????????? | | ????????????????????????????????????? | | ????????????????????????????????????? | | ????????????????????????????????????? | | ????????????????????????????????????? | | ????????????????????????????????????? | +----------------------------------------------------+ Best States ------------- Heat Dissipation 28 Energy Generation 17 Energy Capacity 280 Matter Stores 300 Matter Capacity 300 Sight Range 16 Terrain Scan Density 10 Armor Coverage 450 Evasion (%) 40 Recoil Reduction 2 Item Schematics ----------------- VTOL Module | -9/Materials | Scanalyzed Lrg. Storage Unit | -9/Materials | Scanalyzed Robot Schematics ------------------ M-13 Machinist | -10/Materials | Hacked Fabricated ------------ Nothing Alien Tech Used ----------------- None Achievements -------------- None Challenges ------------ None Game ------ Seed GodReclamationEngine Manual? 0 Play Time 00:31:02 Cumulative 565.3 hours Start 2021.06.08 @ 18:03:10 End 2021.06.08 @ 18:32:41 Sessions 1 Manual Loads 0 Difficulty Rogue Special Mode None Game No. 352 Rogue 352 Adventurer 0 Explorer 0 Win Type - Total 6 Types 4/0/1/0/1/0/0/0/0 Lore% 88 Gallery% 89 Achievement% 71 Wizard Run 0 Options --------- ASCII 0 Keyboard 0 Movement Mouse Keybinds 1 Fullscreen 2 Font 24/Smallcaps Map View 76x50 Tactical HUD 1 Map Filters NONE Filters NONE Steam X RUN: 780316e7-5241-4a09-80cf-c242e63ab5f7